fUST/lending_fUST_20250716
["ID","MTS","AMOUNT","RATE_DAILY","PERIOD"]
[372526245,1752671453232,-884.87,0.00021917,2]
[372526246,1752671453242,-460.0,0.00021917,2]
[372526247,1752671453251,-814.89,0.00021917,2]
[372526248,1752671453381,-151.0,0.00021918,2]
[372526249,1752671453442,-151.0,0.00021918,2]
[372526250,1752671453452,-151.0,0.00021918,2]
[372526251,1752671453462,-151.0,0.00021918,2]
[372526252,1752671453472,-151.0,0.00021918,2]
[372526253,1752671453482,-150.0,0.00021918,2]
[372526254,1752671453492,-250.0,0.00021918,2]
[372526255,1752671453502,-151.0,0.00021942,7]
[372526256,1752671453511,-151.0,0.00021942,7]
[372526257,1752671453521,-151.0,0.00021942,7]
[372526258,1752671453532,-163.38076,0.00021942,7]
[372526259,1752671453542,-163.38076,0.00021942,7]
[372526260,1752671453552,-199.711637,0.00021942,7]
[372526261,1752671453561,-199.711637,0.00021942,7]
[372526262,1752671453573,-431.294144,0.00021942,7]
[372526263,1752671453584,-431.294144,0.00021942,7]
[372526264,1752671453594,-151.0,0.00021942,7]
[372526265,1752671453604,-5083.94997021,0.00021942,2]
[372526266,1752671453613,-150.0,0.00021943,2]
[372526267,1752671453623,-2442.75505716,0.00021969,6]
[372526268,1752671453633,-883.0,0.0002199,2]
[372526269,1752671453642,-883.0,0.00021994,2]
[372526270,1752671453654,-271.919434,0.00021997,7]
[372526271,1752671453664,-271.919434,0.00021997,7]
[372526272,1752671453674,-175.133403,0.00021997,7]
[372526273,1752671453684,-5272.05611911,0.00021997,2]
[372526274,1752671453695,-22373.42,0.00022,7]
[372526275,1752671453704,-1264.02,0.00022,7]
[372526276,1752671453714,-151.0,0.00022,7]
[372526277,1752671453723,-151.0,0.00022,7]
[372526278,1752671453735,-151.0,0.00022,7]
[372526279,1752671453746,-1000.0,0.00022,2]
[372526280,1752671453757,-1000.0,0.00022,2]
[372526281,1752671453766,-1000.0,0.00022,2]
[372526282,1752671453776,-1000.0,0.00022,2]
[372526283,1752671453788,-1000.0,0.00022,2]
[372526284,1752671453798,-160.0,0.00022,7]
[372526285,1752671453808,-167.0,0.00022,2]
[372526286,1752671453817,-1133.66232133,0.00022028,2]
[372526287,1752671453827,-151.0,0.00022052,7]
[372526288,1752671453837,-151.0,0.00022052,7]
[372526289,1752671453847,-328.61778,0.00022052,7]
[372526290,1752671453856,-328.61778,0.00022052,7]
[372526291,1752671453866,-151.0,0.00022052,7]
[372526292,1752671453876,-5467.12219552,0.00022052,2]
[372526293,1752671453884,-883.0,0.00022078,2]
[372526294,1752671453894,-883.0,0.00022081,2]
[372526295,1752671453903,-883.0,0.00022086,2]
[372526296,1752671453913,-460.0,0.00022097,2]
[372526297,1752671453926,-151.0,0.000221,8]
[372526298,1752671453936,-5729.00312822,0.00022107,2]
[372526299,1752671453947,-151.0,0.00022126,3]
[372526300,1752671453957,-151.0,0.00022126,7]
[372526301,1752671453969,-262.677823,0.00022126,7]
[372526302,1752671453979,-238.380694,0.00022126,7]
[372526303,1752671453990,-262.454174,0.00022126,7]
[372526304,1752671454002,-262.454174,0.00022126,7]
[372526305,1752671454012,-883.0,0.00022169,2]
[372526306,1752671454023,-2442.75505716,0.00022176,6]
[372526307,1752671454034,-460.0,0.00022191,2]
[372526308,1752671454044,-151.786461,0.00022191,7]
[372526309,1752671454054,-151.0,0.00022191,7]
[372526310,1752671454064,-460.0,0.00022191,2]
[372526311,1752671454074,-460.0,0.00022191,2]
[372526312,1752671454084,-460.0,0.00022191,2]
[372526313,1752671454094,-460.0,0.00022191,2]
[372526314,1752671454103,-460.0,0.00022191,2]
[372526315,1752671454113,-460.0,0.00022191,2]
[372526316,1752671454122,-460.0,0.00022191,2]
[372526317,1752671454132,-2904.42,0.00022191,2]
[372526318,1752671454141,-460.0,0.00022191,2]
[372526319,1752671454151,-460.0,0.00022191,2]
[372526320,1752671454160,-1084.9,0.00022191,2]
[372526321,1752671454170,-460.0,0.00022191,2]
[372526322,1752671454180,-895.61,0.00022191,2]
[372526323,1752671454189,-488.54,0.00022191,2]
[372526324,1752671454199,-392.32,0.00022191,2]
[372526325,1752671454208,-460.0,0.00022191,2]
[372526326,1752671454218,-460.0,0.00022191,2]
[372526327,1752671454227,-470.45,0.00022191,2]
[372526328,1752671454236,-4784.3,0.00022191,2]
[372526329,1752671454246,-681.81,0.00022191,2]
[372526330,1752671454255,-1022.45,0.00022191,2]
[372526331,1752671454264,-1785.86,0.00022191,2]
[372526332,1752671454275,-460.0,0.00022191,2]
[372526333,1752671454287,-697.59,0.00022191,2]
[372526334,1752671454297,-460.0,0.00022191,2]
[372526335,1752671454306,-1723.01,0.00022191,2]
[372526336,1752671454316,-2019.39,0.00022191,2]
[372526337,1752671454325,-487.47,0.00022191,2]
[372526338,1752671454335,-460.0,0.00022191,2]
[372526339,1752671454344,-460.0,0.00022191,2]
[372526340,1752671454354,-1556.27,0.00022191,2]
[372526341,1752671454363,-771.45,0.00022191,2]
[372526342,1752671454373,-2994.15,0.00022191,2]
[372526343,1752671454383,-460.0,0.00022191,2]
[372526344,1752671454392,-1920.94,0.00022191,2]
[372526345,1752671454401,-515.6,0.00022191,2]
[372526346,1752671454411,-460.2,0.00022191,2]
[372526347,1752671454420,-1436.37,0.00022191,2]
[372526348,1752671454430,-460.0,0.00022191,2]
[372526349,1752671454440,-460.0,0.00022191,2]
[372526350,1752671454450,-2922.39,0.00022191,2]
[372526351,1752671454460,-884.87,0.00022191,2]
[372526352,1752671454469,-460.0,0.00022191,2]
[372526353,1752671454479,-883.0,0.00022192,2]
[372526354,1752671454488,-3000.0,0.00022212,2]
[372526355,1752671454499,-883.0,0.0002227,2]
[372526356,1752671454509,-2351.0,0.00022337,2]
[372526357,1752671454518,-2442.75505716,0.00022383,7]
[372526358,1752671454528,-168.0,0.00022423,2]
[372526359,1752671454539,-883.0,0.00022438,2]
[372526360,1752671454548,-587.0,0.00022456,2]
[372526361,1752671454558,-288.41601069,0.00022465,2]
[372526362,1752671454567,-460.0,0.00022465,2]
[372526363,1752671454576,-460.0,0.00022465,2]
[372526364,1752671454586,-460.0,0.00022465,2]
[372526365,1752671454595,-460.0,0.00022465,2]
[372526366,1752671454605,-460.0,0.00022465,2]
[372526367,1752671454614,-151.0,0.00022465,7]
[372526368,1752671454624,-460.0,0.00022465,2]
[372526369,1752671454634,-460.0,0.00022465,2]
[372526370,1752671454643,-2583.913099,0.00022465,7]
[372526371,1752671454653,-2583.913099,0.00022465,7]
[372526372,1752671454663,-151.0,0.00022465,7]
[372526373,1752671454672,-2904.42,0.00022465,2]
[372526374,1752671454682,-460.0,0.00022465,2]
[372526375,1752671454691,-460.0,0.00022465,2]
[372526376,1752671454700,-1084.9,0.00022465,2]
[372526377,1752671454710,-395.66,0.00022465,2]
[372526378,1752671454719,-895.61,0.00022465,2]
[372526379,1752671454728,-488.54,0.00022465,2]
[372526380,1752671454738,-460.0,0.00022465,2]
[372526381,1752671454748,-460.0,0.00022465,2]
[372526382,1752671454758,-470.45,0.00022465,2]
[372526383,1752671454767,-4784.3,0.00022465,2]
[372526384,1752671454777,-681.81,0.00022465,2]
[372526385,1752671454787,-1022.45,0.00022465,2]
[372526386,1752671454797,-1785.86,0.00022465,2]
[372526387,1752671454808,-460.0,0.00022465,2]
[372526388,1752671454817,-697.59,0.00022465,2]
[372526389,1752671454826,-460.0,0.00022465,2]
[372526390,1752671454836,-1723.01,0.00022465,2]
[372526391,1752671454846,-2019.39,0.00022465,2]
[372526392,1752671454856,-487.47,0.00022465,2]
[372526393,1752671454865,-247.41,0.00022465,2]
[372526394,1752671454874,-460.0,0.00022465,2]
[372526395,1752671454884,-1556.27,0.00022465,2]
[372526396,1752671454894,-771.45,0.00022465,2]
[372526397,1752671454904,-2994.15,0.00022465,2]
[372526398,1752671454915,-460.0,0.00022465,2]
[372526399,1752671454928,-1920.94,0.00022465,2]
[372526400,1752671454937,-515.6,0.00022465,2]
[372526401,1752671454947,-1436.37,0.00022465,2]
[372526402,1752671454957,-460.0,0.00022465,2]
[372526403,1752671454967,-460.0,0.00022465,2]
[372526404,1752671454976,-2922.39,0.00022465,2]
[372526405,1752671454986,-884.87,0.00022465,2]
[372526406,1752671454996,-460.0,0.00022465,2]
[372526407,1752671455006,-450.0,0.00022466,2]
[372526408,1752671455015,-17007.69522916,0.0002249,7]
[372526409,1752671455025,-151.0,0.0002249,7]
[372526410,1752671455036,-151.0,0.0002249,7]
[372526411,1752671455046,-151.0,0.0002249,7]
[372526412,1752671455055,-151.0,0.0002249,7]
[372526413,1752671455064,-151.0,0.0002249,7]
[372526414,1752671455074,-151.0,0.0002249,7]
[372526415,1752671455084,-314.462281,0.0002249,7]
[372526416,1752671455093,-314.462281,0.0002249,7]
[372526417,1752671455103,-163.38076,0.0002249,7]
[372526418,1752671455112,-163.38076,0.0002249,7]
[372526419,1752671455122,-305.519508,0.0002249,7]
[372526420,1752671455132,-188.687575,0.0002249,7]
[372526421,1752671455142,-188.687575,0.0002249,7]
[372526422,1752671455151,-305.519508,0.0002249,7]
[372526423,1752671455161,-199.711637,0.0002249,7]
[372526424,1752671455170,-199.711637,0.0002249,7]
[372526425,1752671455180,-431.294144,0.0002249,7]
[372526426,1752671455190,-431.294144,0.0002249,7]
[372526427,1752671455199,-151.0,0.0002249,7]
[372526428,1752671455208,-271.919434,0.0002249,7]
[372526429,1752671455218,-271.919434,0.0002249,7]
[372526430,1752671455231,-450.0,0.00022491,2]
[372526431,1752671455240,-883.0,0.00022496,2]
[372526432,1752671455250,-1307.01197211,0.000225,2]
[372526433,1752671455260,-151.0,0.000225,8]
[372526434,1752671455270,-151.0,0.000225,6]
[372526435,1752671455279,-1866.65937195,0.00022536,2]
[372526436,1752671455291,-883.0,0.00022546,2]
[372526437,1752671455300,-2442.75505716,0.0002259,7]
[372526438,1752671455310,-160.0,0.00022636,4]
[372526439,1752671455320,-560.0,0.00022645,2]
[372526440,1752671455329,-1200.0,0.00022675,2]
[372526441,1752671455339,-151.0,0.00022739,7]
[372526442,1752671455349,-151.0,0.00022739,7]
[372526443,1752671455360,-151.0,0.00022739,7]
[372526444,1752671455372,-151.0,0.00022739,7]
[372526445,1752671455383,-151.0,0.00022739,7]
[372526446,1752671455395,-151.0,0.00022739,7]
[372526447,1752671455405,-192.683988,0.00022739,7]
[372526448,1752671455414,-151.0,0.00022739,7]
[372526449,1752671455425,-460.0,0.00022739,2]
[372526450,1752671455435,-460.0,0.00022739,2]
[372526451,1752671455447,-274.53,0.00022739,2]
[372526452,1752671455458,-485.75891849,0.00022739,2]
[372526453,1752671455470,-460.0,0.00022739,2]
[372526454,1752671455481,-151.0,0.00022739,7]
[372526455,1752671455492,-2003.981264,0.00022739,7]
[372526456,1752671455502,-2003.981264,0.00022739,7]
[372526457,1752671455512,-460.0,0.00022739,2]
[372526458,1752671455522,-460.0,0.00022739,2]
[372526459,1752671455532,-2904.42,0.00022739,2]
[372526460,1752671455542,-163.445326,0.00022739,7]
[372526461,1752671455628,-460.0,0.00022739,2]
[372526462,1752671455638,-460.0,0.00022739,2]
[372526463,1752671455649,-1084.9,0.00022739,2]
[372526464,1752671455659,-151.0,0.00022739,7]
[372526465,1752671455668,-328.61778,0.00022739,7]
[372526466,1752671455678,-328.61778,0.00022739,7]
[372526467,1752671455687,-895.61,0.00022739,2]
[372526468,1752671455697,-488.54,0.00022739,2]
[372526469,1752671455707,-460.0,0.00022739,2]
[372526470,1752671455717,-151.0,0.00022739,7]
[372526471,1752671455727,-460.0,0.00022739,2]
[372526472,1752671455736,-470.45,0.00022739,2]
[372526473,1752671455746,-4784.3,0.00022739,2]
[372526474,1752671455755,-681.81,0.00022739,2]
[372526475,1752671455764,-1022.45,0.00022739,2]
[372526476,1752671455774,-1785.86,0.00022739,2]
[372526477,1752671455784,-460.0,0.00022739,2]
[372526478,1752671455794,-697.59,0.00022739,2]
[372526479,1752671455804,-460.0,0.00022739,2]
[372526480,1752671455814,-1723.01,0.00022739,2]
[372526481,1752671455823,-2019.39,0.00022739,2]
[372526482,1752671455833,-487.47,0.00022739,2]
[372526483,1752671455843,-460.0,0.00022739,2]
[372526484,1752671455853,-1556.27,0.00022739,2]
[372526485,1752671455862,-771.45,0.00022739,2]
[372526486,1752671455872,-2994.15,0.00022739,2]
[372526487,1752671455883,-460.0,0.00022739,2]
[372526488,1752671455893,-1920.94,0.00022739,2]
[372526489,1752671455902,-515.6,0.00022739,2]
[372526490,1752671455913,-1436.37,0.00022739,2]
[372526491,1752671455926,-460.0,0.00022739,2]
[372526492,1752671455935,-460.0,0.00022739,2]
[372526493,1752671455944,-2922.39,0.00022739,2]
[372526494,1752671455955,-884.87,0.00022739,2]
[372526495,1752671455965,-460.0,0.00022739,2]
[372526496,1752671455975,-2874.61804698,0.0002276,2]
[372526497,1752671455985,-2442.75505716,0.00022797,7]
[372526498,1752671455995,-1378.414095,0.00022821,8]
[372526499,1752671456005,-428.8776545,0.00022849,2]
[372526500,1752671456014,-215.0738,0.00022871,2]
[372526501,1752671456023,-579.25533247,0.00022883,2]
[372526502,1752671456098,-303.43,0.00019178,2]
[372526503,1752671456110,-156.57,0.00019178,2]
[372526504,1752671456120,-460.0,0.00019178,2]
[372526505,1752671456129,-460.0,0.00019178,2]
[372526506,1752671456139,-814.89,0.00022191,2]
[372526507,1752671456148,-433.31897174,0.00022465,2]
[372526508,1752671456300,-1442.82828291,0.00018799,2]
[372526509,1752671456310,-460.0,0.00019178,2]
[372526510,1752671456319,-369.52906054,0.00019178,2]
[372526511,1752671456331,-90.47093946,0.00019178,2]
[372526512,1752671456340,-460.0,0.00019178,2]
[372526513,1752671456350,-460.0,0.00019452,2]
[372526514,1752671456360,-460.0,0.00019452,2]
[372526515,1752671456369,-183.16881764,0.00019452,2]
[372526516,1752671457003,-276.83118236,0.00019452,2]
[372526517,1752671457012,-429.1687796,0.00020904,2]
[372526518,1752671457022,-177.2980348,0.00021589,2]
[372526519,1752671457033,-381.57102826,0.00022465,2]
[372526520,1752671457044,-814.89,0.00022739,2]
[372526521,1752671457054,-1287.40403941,0.00022883,2]
[372526522,1752671457064,-151.0,0.000229,5]
[372526523,1752671457074,-151.0,0.000229,8]
[372526524,1752671457084,-160.0,0.00023,3]
[372526525,1752671457095,-160.0,0.00023,3]
[372526526,1752671457105,-1963.24868026,0.00023,2]
[372526527,1752671457115,-21226.37687698,0.00023,10]
[372526528,1752671457575,-153.73745628,0.00019178,2]
[372526530,1752671794055,993.010275,0.00027397,120]
[372526531,1752671908203,150.5,0.00021908,120]
[372526532,1752671908654,150.5,0.00021898,120]
[372526533,1752671909126,242.22,0.00021888,120]
[372526535,1752671965512,204.876306,0.00013699,2]
[372526536,1752672028291,150.5,0.00021908,120]
[372526537,1752672028770,150.5,0.00021898,120]
[372526538,1752672029220,245.62,0.00021888,120]
[372526539,1752672034973,200.0,0.00027,120]
[372526542,1752672378053,891.85,0.00023,30]
[372526547,1752672420452,1444.0,0.00026137,120]
[372526548,1752672428289,-322.76739407,0.00018919,2]
[372526549,1752672470850,889.33185781,0.00018,2]
[372526551,1752672509828,150.999999,0.00027,120]
[372526553,1752672514261,2842.76715861,0.0002,120]
[372526554,1752672517652,5589.31941783,0.00018,2]
[372526556,1752672520045,203.09137068,0.00027,120]
[372526557,1752672520236,242.0799084,0.00018,2]
[372526558,1752672520267,16552.94708938,0.00018,2]
[372526624,1752672632541,-710.17380002,0.00018919,2]
[372526627,1752672632556,-489.82619998,0.00018919,2]
[372526629,1752672632565,-4803.0,0.0001892,2]
[372526632,1752672632575,-1200.0,0.0001892,2]
[372526635,1752672632584,-215.5134039,0.00018921,2]
[372526638,1752672632595,-500.0,0.00018921,2]
[372526641,1752672632604,-233.80885577,0.00018921,2]
[372526644,1752672632614,-500.0,0.00018921,2]
[372526646,1752672632624,-500.0,0.00018921,2]
[372526648,1752672632634,-593.52397053,0.00018921,2]
[372526650,1752672632644,-176.94818945,0.00018921,2]
[372526652,1752672632653,-13362.41293851,0.00018922,2]
[372526672,1752672638529,-5666.94841974,0.00018922,2]
[372526673,1752672638539,-1472.67228743,0.00019077,2]
[372526674,1752672638548,-512.03409187,0.00019173,2]
[372526675,1752672638558,-500.0,0.00019173,2]
[372526676,1752672638568,-500.0,0.00019173,2]
[372526677,1752672638578,-320.42161331,0.00019177,2]
[372526678,1752672638588,-199.8088663,0.00019178,2]
[372526679,1752672638598,-460.0,0.00019178,2]
[372526680,1752672638607,-460.0,0.00019178,2]
[372526681,1752672638618,-460.0,0.00019178,2]
[372526682,1752672638628,-460.0,0.00019178,2]
[372526683,1752672638637,-321.33047103,0.00019178,2]
[372526684,1752672638647,-460.0,0.00019178,2]
[372526685,1752672638656,-460.0,0.00019178,2]
[372526686,1752672638666,-460.0,0.00019178,2]
[372526687,1752672638675,-463.23783032,0.00019178,2]
[372526688,1752672638685,-460.0,0.00019178,2]
[372526689,1752672638694,-460.0,0.00019178,2]
[372526690,1752672638705,-460.0,0.00019178,2]
[372526691,1752672638714,-460.0,0.00019178,2]
[372526692,1752672638723,-475.91368772,0.00019178,2]
[372526693,1752672638733,-463.78135921,0.00019178,2]
[372526694,1752672638742,-460.0,0.00019178,2]
[372526695,1752672638752,-462.24594813,0.00019178,2]
[372526696,1752672638762,-460.0,0.00019178,2]
[372526697,1752672638772,-460.0,0.00019178,2]
[372526698,1752672638784,-460.0,0.00019178,2]
[372526699,1752672638794,-460.0,0.00019178,2]
[372526700,1752672638806,-460.0,0.00019178,2]
[372526701,1752672638816,-496.19406,0.00019178,2]
[372526702,1752672638825,-460.0,0.00019178,2]
[372526703,1752672638835,-460.0,0.00019178,2]
[372526704,1752672638844,-460.0,0.00019178,2]
[372526705,1752672638854,-460.0,0.00019178,2]
[372526706,1752672638863,-392.32,0.00019178,2]
[372526707,1752672638873,-423.11021099,0.00019178,2]
[372526708,1752672638882,-460.0,0.00019178,2]
[372526709,1752672638892,-460.0,0.00019178,2]
[372526710,1752672638901,-460.0,0.00019178,2]
[372526711,1752672638911,-460.0,0.00019178,2]
[372526712,1752672638920,-460.0,0.00019178,2]
[372526713,1752672638930,-460.0,0.00019178,2]
[372526714,1752672638939,-460.0,0.00019178,2]
[372526715,1752672638949,-460.0,0.00019178,2]
[372526716,1752672638958,-462.44721074,0.00019178,2]
[372526717,1752672638968,-460.0,0.00019178,2]
[372526718,1752672638977,-460.0,0.00019178,2]
[372526719,1752672638987,-460.0,0.00019178,2]
[372526720,1752672638998,-449.36653433,0.00019178,2]
[372526721,1752672639007,-454.46414044,0.00019178,2]
[372526722,1752672639016,-460.0,0.00019178,2]
[372526723,1752672639026,-460.0,0.00019178,2]
[372526724,1752672639036,-460.0,0.00019178,2]
[372526725,1752672639045,-460.0,0.00019178,2]
[372526726,1752672639055,-460.0,0.00019178,2]
[372526727,1752672639065,-460.0,0.00019178,2]
[372526728,1752672639074,-460.0,0.00019178,2]
[372526729,1752672639084,-663.0,0.00019178,2]
[372526730,1752672639094,-460.0,0.00019178,2]
[372526731,1752672639103,-778.03,0.00019178,2]
[372526732,1752672639113,-460.0,0.00019178,2]
[372526733,1752672639123,-460.0,0.00019178,2]
[372526734,1752672639133,-151.0,0.00019178,2]
[372526735,1752672639143,-460.0,0.00019178,2]
[372526736,1752672639152,-460.0,0.00019178,2]
[372526737,1752672639162,-462.73653969,0.00019178,2]
[372526738,1752672639172,-564.51936819,0.00019178,2]
[372526739,1752672639182,-460.0,0.00019178,2]
[372526740,1752672639191,-460.0,0.00019178,2]
[372526741,1752672639201,-460.0,0.00019178,2]
[372526742,1752672639210,-460.0,0.00019178,2]
[372526743,1752672639220,-460.0,0.00019178,2]
[372526744,1752672639230,-460.0,0.00019178,2]
[372526745,1752672639239,-290.12307839,0.00019178,2]
[372526746,1752672639249,-460.0,0.00019178,2]
[372526747,1752672639258,-460.0,0.00019178,2]
[372526748,1752672639268,-151.0,0.00019178,2]
[372526749,1752672639279,-460.0,0.00019178,2]
[372526750,1752672639289,-460.0,0.00019178,2]
[372526751,1752672639299,-460.0,0.00019178,2]
[372526752,1752672639309,-460.0,0.00019178,2]
[372526753,1752672639319,-460.0,0.00019178,2]
[372526754,1752672639329,-460.0,0.00019178,2]
[372526755,1752672639338,-460.0,0.00019178,2]
[372526756,1752672639349,-460.0,0.00019178,2]
[372526757,1752672639362,-460.0,0.00019178,2]
[372526758,1752672639372,-460.0,0.00019178,2]
[372526759,1752672639382,-460.0,0.00019178,2]
[372526760,1752672639392,-589.54058891,0.00019178,2]
[372526761,1752672639401,-460.0,0.00019178,2]
[372526762,1752672639410,-460.0,0.00019178,2]
[372526763,1752672639420,-460.0,0.00019178,2]
[372526764,1752672639430,-460.0,0.00019178,2]
[372526765,1752672639439,-609.81,0.00019178,2]
[372526766,1752672639448,-460.0,0.00019178,2]
[372526767,1752672639458,-460.0,0.00019178,2]
[372526768,1752672639467,-460.0,0.00019178,2]
[372526769,1752672639477,-460.0,0.00019178,2]
[372526770,1752672639486,-668.16,0.00019178,2]
[372526771,1752672639496,-460.0,0.00019178,2]
[372526772,1752672639505,-460.0,0.00019178,2]
[372526773,1752672639514,-2931.7,0.00019178,2]
[372526774,1752672639524,-460.0,0.00019178,2]
[372526775,1752672639533,-1195.18,0.00019178,2]
[372526776,1752672639543,-460.0,0.00019178,2]
[372526777,1752672639552,-460.0,0.00019178,2]
[372526778,1752672639563,-460.0,0.00019178,2]
[372526779,1752672639573,-460.0,0.00019178,2]
[372526780,1752672639582,-460.0,0.00019178,2]
[372526781,1752672639591,-460.0,0.00019178,2]
[372526782,1752672639601,-460.0,0.00019178,2]
[372526783,1752672639610,-460.0,0.00019178,2]
[372526784,1752672639619,-460.0,0.00019178,2]
[372526785,1752672639629,-460.0,0.00019178,2]
[372526786,1752672639638,-460.0,0.00019178,2]
[372526787,1752672639647,-460.0,0.00019178,2]
[372526788,1752672639657,-151.0,0.00019178,2]
[372526789,1752672639667,-192.52105903,0.00019178,2]
[372526790,1752672639677,-460.0,0.00019178,2]
[372526791,1752672639687,-460.0,0.00019178,2]
[372526792,1752672639696,-500.0,0.00019178,2]
[372526793,1752672639706,-460.0,0.00019178,2]
[372526794,1752672639716,-460.0,0.00019178,2]
[372526795,1752672639725,-460.91152624,0.00019178,2]
[372526796,1752672639734,-460.0,0.00019178,2]
[372526797,1752672639848,-1110.33,0.00019178,2]
[372526798,1752672639858,-460.0,0.00019178,2]
[372526799,1752672639868,-999.15,0.00019178,2]
[372526800,1752672639878,-460.0,0.00019178,2]
[372526801,1752672639887,-635.74,0.00019178,2]
[372526802,1752672639896,-460.0,0.00019178,2]
[372526803,1752672639906,-1301.78,0.00019178,2]
[372526804,1752672639916,-490.49,0.00019178,2]
[372526805,1752672639925,-460.0,0.00019178,2]
[372526806,1752672639935,-460.0,0.00019178,2]
[372526807,1752672639944,-460.0,0.00019178,2]
[372526808,1752672639953,-474.80682525,0.00019178,2]
[372526809,1752672639963,-460.5313826,0.00019178,2]
[372526810,1752672639973,-500.0,0.00019178,2]
[372526811,1752672639982,-460.0,0.00019178,2]
[372526812,1752672639991,-460.0,0.00019178,2]
[372526813,1752672640001,-460.0,0.00019178,2]
[372526814,1752672640010,-151.0,0.00019178,2]
[372526815,1752672640019,-201.74690344,0.00019178,2]
[372526816,1752672640029,-460.0,0.00019178,2]
[372526817,1752672640038,-460.0,0.00019178,2]
[372526818,1752672640048,-460.0,0.00019178,2]
[372526819,1752672640058,-460.0,0.00019178,2]
[372526820,1752672640067,-460.0,0.00019178,2]
[372526821,1752672640077,-460.0,0.00019178,2]
[372526823,1752672640086,-467.29,0.00019178,2]
[372526825,1752672640096,-460.0,0.00019178,2]
[372526826,1752672640106,-2011.25,0.00019178,2]
[372526827,1752672640115,-460.0,0.00019178,2]
[372526828,1752672640125,-415.2199377,0.00019178,2]
[372526829,1752672640135,-581.89,0.00019178,2]
[372526830,1752672640144,-460.0,0.00019178,2]
[372526831,1752672640154,-460.0,0.00019178,2]
[372526832,1752672640164,-460.0,0.00019178,2]
[372526833,1752672640174,-1902.57,0.00019178,2]
[372526834,1752672640184,-460.0,0.00019178,2]
[372526835,1752672640194,-460.0,0.00019178,2]
[372526836,1752672640203,-460.0,0.00019178,2]
[372526837,1752672640213,-1243.55,0.00019178,2]
[372526838,1752672640223,-460.0,0.00019178,2]
[372526839,1752672640232,-401.58,0.00019178,2]
[372526840,1752672640242,-460.0,0.00019178,2]
[372526841,1752672640251,-460.0,0.00019178,2]
[372526842,1752672640261,-460.0,0.00019178,2]
[372526843,1752672640271,-460.0,0.00019178,2]
[372526844,1752672640282,-460.0,0.00019178,2]
[372526845,1752672640292,-460.0,0.00019178,2]
[372526846,1752672640301,-460.0,0.00019178,2]
[372526847,1752672640311,-1872.8,0.00019178,2]
[372526848,1752672640322,-460.0,0.00019178,2]
[372526849,1752672640332,-460.0,0.00019178,2]
[372526850,1752672640342,-460.0,0.00019178,2]
[372526851,1752672640351,-729.61,0.00019178,2]
[372526852,1752672640362,-460.0,0.00019178,2]
[372526853,1752672640371,-460.0,0.00019178,2]
[372526854,1752672640380,-460.0,0.00019178,2]
[372526855,1752672640389,-460.0,0.00019178,2]
[372526856,1752672640399,-517.9,0.00019178,2]
[372526857,1752672640409,-460.0,0.00019178,2]
[372526858,1752672640418,-460.0,0.00019178,2]